[Event "Prague Open 2025"]
[Site "Prague"]
[Date "2025.01.12"]
[Round "4.11"]
[White "Taborsky, Rostislav"]
[Black "Mueer, Sebastian"]
[Result "0-1"]
[Annotator "RC"]
[ECO "E04"]
[WhiteElo "2069"]
[BlackElo "2192"]
[PlyCount "66"]
[EventDate "2025.01.07"]
[EventType "swiss"]
[EventCountry "CZE"]
[SourceTitle "playchess.com"]
[Source "ChessBase"]
[SourceQuality "1"]
[TimeControl "40/5400+30:1800+30"]

1. d4 {[%emt 0:15:58]} Nf6 {[%emt 0:00:09]} 2. c4 {[%emt 0:00:11]} e6 {[%emt 0:00:08]} 3. Nf3 {[%emt 0:00:06]} d5 {[%emt 0:00:07]} 4. g3 {[%emt 0:00:41]} dxc4 {[%emt 0:00:13]} 5. Bg2 {[%emt 0:00:05]} a6 {[%emt 0:00:08]} 6. O-O {[%emt 0:00:53]} Nc6 {[%emt 0:00:12]} 7. e3 {[%emt 0:00:47]} Rb8 {[%emt 0:00:06]} 8. Qe2 {[%emt 0:00:43]} b5 {[%emt 0:01:11]} 9. b3 {[%emt 0:02:54]} cxb3 {[%emt 0:00:09]} 10. axb3 {[%emt 0:00:07]} Bd6 {[%emt 0:00:32]} 11. Bb2 {[%emt 0:01:55]} O-O {[%emt 0:04:37]} 12. Rc1 {[%emt 0:05:33]} Nb4 {[%emt 0:07:21]} 13. Nbd2 {[%emt 0:25:52]} Bb7 {[%emt 0:03:01]} 14. e4 {[%emt 0:09:09]} Nd7 {[%emt 0:01:59]} 15. e5 {[%emt 0:07:36]} Be7 {[%emt 0:00:03]} 16. Ne4 {[%emt 0:00:09]} Bd5 {[%emt 0:06:40]} 17. Bc3 {[%emt 0:06:56]} Rb6 {[%emt 0:07:32]} 18. Qe1 {[%emt 0:07:03]} Nd3 {[%emt 0:00:35]} 19. Qe3 {[%emt 0:00:31]} Nxc1 {[%emt 0:00:26]} 20. Rxc1 {[%emt 0:00:15]} Qa8 {[%emt 0:03:50]} 21. Ned2 {[%emt 0:01:22]} Rc6 {[%emt 0:01:41]} 22. Rb1 {[%emt 0:02:43]} a5 {[%emt 0:04:54]} 23. Ne1 {[%emt 0:00:47]} Nb6 {[%emt 0:02:04]} 24. Bf1 {[%emt 0:02:22]} Qa6 {[%emt 0:08:59]} 25. Ba1 {[%emt 0:00:46]} Bb4 {[%emt 0:03:42]} 26. Nd3 {[%emt 0:01:12]} Bxd2 {[%emt 0:00:15]} 27. Qxd2 {[%emt 0:00:18]} Nd7 {[%emt 0:02:35]} 28. Nf4 {[%emt 0:00:44]} Be4 {[%emt 0:02:55]} 29. Re1 {[%emt 0:00:07]} Rc2 {[%emt 0:02:16]} 30. Qd1 {[%emt 0:00:17]} Qc6 {[%emt 0:01:27]} 31. h4 {[%emt 0:07:27]} Ra2 {[%emt 0:00:38]} 32. Nh5 {[%emt 0:00:17]} Bf3 {[%emt 0:00:51]} 33. Qb1 {[%emt 0:00:12]} Rxa1 {[%emt 0:03:53]} 0-1

[Event "Prague Open 2025"]
[Site "Prague"]
[Date "2025.01.12"]
[Round "4.12"]
[White "Topencik, Bruno"]
[Black "Zhukovskyi, Oleksandr"]
[Result "1/2-1/2"]
[Annotator "RC"]
[ECO "B04"]
[WhiteElo "1985"]
[BlackElo "2162"]
[PlyCount "53"]
[EventDate "2025.01.07"]
[EventType "swiss"]
[EventCountry "CZE"]
[SourceTitle "playchess.com"]
[Source "ChessBase"]
[SourceQuality "1"]
[TimeControl "40/5400+30:1800+30"]

1. e4 {[%emt 0:00:09]} Nf6 {[%emt 0:00:07]} 2. e5 {[%emt 0:00:05]} Nd5 {[%emt 0:00:03]} 3. d4 {[%emt 0:00:09]} d6 {[%emt 0:00:05]} 4. Nf3 {[%emt 0:00:05]} dxe5 {[%emt 0:00:07]} 5. Nxe5 {[%emt 0:00:06]} c6 {[%emt 0:00:09]} 6. Nc3 {[%emt 0:00:03]} Nxc3 {[%emt 0:02:12]} 7. bxc3 {[%emt 0:00:06]} Nd7 {[%emt 0:00:20]} 8. Nf3 {[%emt 0:03:00]} g6 {[%emt 0:02:14]} 9. Bd3 {[%emt 0:01:26]} Bg7 {[%emt 0:00:13]} 10. O-O {[%emt 0:00:52]} O-O {[%emt 0:00:07]} 11. Re1 {[%emt 0:01:51]} Re8 {[%emt 0:01:55]} 12. Bf4 {[%emt 0:00:46]} Qa5 {[%emt 0:02:23]} 13. Qd2 {[%emt 0:03:20]} Nb6 {[%emt 0:05:22]} 14. h3 {[%emt 0:14:01]} Na4 {[%emt 0:12:51]} 15. Bd6 {[%emt 0:06:14]} Bxh3 {[%emt 0:06:25]} 16. Bxe7 {[%emt 0:05:31]} Bg4 {[%emt 0:06:43]} 17. Bb4 {[%emt 0:05:42]} Qd5 {[%emt 0:04:32]} 18. Rxe8+ {[%emt 0:02:05]} Rxe8 {[%emt 0:00:31]} 19. Re1 {[%emt 0:00:12]} Rxe1+ {[%emt 0:19:51]} 20. Qxe1 {[%emt 0:01:18]} Qe6 {[%emt 0:11:24]} 21. Qd2 {[%emt 0:06:14]} Bxf3 {[%emt 0:03:00]} 22. gxf3 a5 {[%emt 0:07:30]} 23. Bxa5 {[%emt 0:01:50]} Qd5 {[%emt 0:00:08]} 24. Bb4 {[%emt 0:09:40]} Qxf3 {[%emt 0:01:40]} 25. Qg5 {[%emt 0:04:54]} h6 {[%emt 0:06:55]} 26. Qe7 {[%emt 0:01:31]} Qg4+ 27. Kf1 1/2-1/2

[Event "Prague Open 2025"]
[Site "Prague"]
[Date "2025.01.12"]
[Round "4.13"]
[White "Jiricek, Jakub"]
[Black "Mannion, Stephen R"]
[Result "0-1"]
[Annotator "RC"]
[ECO "A29"]
[WhiteElo "1968"]
[BlackElo "2159"]
[PlyCount "64"]
[EventDate "2025.01.07"]
[EventType "swiss"]
[EventCountry "CZE"]
[SourceTitle "playchess.com"]
[Source "ChessBase"]
[SourceQuality "1"]
[TimeControl "40/5400+30:1800+30"]

1. c4 {[%emt 0:00:03]} e5 {[%emt 0:02:28]} 2. Nc3 {[%emt 0:00:14]} Nf6 {[%emt 0:00:05]} 3. Nf3 {[%emt 0:00:16]} Nc6 {[%emt 0:00:07]} 4. g3 {[%emt 0:00:26]} d5 {[%emt 0:00:17]} 5. cxd5 {[%emt 0:02:04]} Nxd5 {[%emt 0:00:06]} 6. d3 {[%emt 0:01:08]} Be7 {[%emt 0:06:42]} 7. Bg2 {[%emt 0:00:32]} Be6 {[%emt 0:00:24]} 8. O-O {[%emt 0:01:26]} O-O {[%emt 0:00:15]} 9. a3 {[%emt 0:02:22]} h6 {[%emt 0:06:51]} 10. Bd2 {[%emt 0:02:31]} Re8 {[%emt 0:08:50]} 11. b4 {[%emt 0:02:16]} a6 {[%emt 0:00:54]} 12. Na4 {[%emt 0:02:33]} f5 {[%emt 0:02:12]} 13. Rc1 {[%emt 0:08:39]} e4 {[%emt 0:10:52]} 14. Ne1 {[%emt 0:03:02]} Nf6 {[%emt 0:01:46]} 15. Bc3 {[%emt 0:04:52]} Bd5 {[%emt 0:00:58]} 16. Bb2 {[%emt 0:04:04]} exd3 {[%emt 0:01:12]} 17. Nxd3 {[%emt 0:00:33]} Bxg2 {[%emt 0:02:43]} 18. Kxg2 {[%emt 0:00:11]} Qd5+ {[%emt 0:09:57]} 19. Kg1 {[%emt 0:00:54]} Ne4 {[%emt 0:06:50]} 20. Nf4 {[%emt 0:08:10]} Qf7 {[%emt 0:02:50]} 21. f3 {[%emt 0:07:30]} Rad8 {[%emt 0:03:17]} 22. Nd3 {[%emt 0:02:12]} Nf6 {[%emt 0:02:53]} 23. Qc2 {[%emt 0:13:43]} Nd5 {[%emt 0:02:35]} 24. Qb3 {[%emt 0:02:12]} Bg5 {[%emt 0:11:57]} 25. f4 {[%emt 0:05:03]} Bf6 {[%emt 0:00:03]} 26. Rxc6 {[%emt 0:11:12]} bxc6 {[%emt 0:00:09]} 27. Ne5 {[%emt 0:00:22]} Bxe5 {[%emt 0:02:34]} 28. Bxe5 {[%emt 0:00:12]} Nb6 {[%emt 0:00:13]} 29. Qc2 {[%emt 0:05:00]} Nxa4 {[%emt 0:03:13]} 30. Qxa4 {[%emt 0:00:13]} Qc4 {[%emt 0:00:15]} 31. Kf2 {[%emt 0:02:27]} Rd2 {[%emt 0:02:25]} 32. Re1 {[%emt 0:00:13]} Re7 {[%emt 0:01:33]} 0-1

[Event "Prague Open 2025"]
[Site "Prague"]
[Date "2025.01.12"]
[Round "4.14"]
[White "Kara, Goktan Can"]
[Black "Felix, Raphael"]
[Result "0-1"]
[Annotator "RC"]
[ECO "B51"]
[WhiteElo "1789"]
[BlackElo "2127"]
[PlyCount "86"]
[EventDate "2025.01.07"]
[EventType "swiss"]
[EventCountry "CZE"]
[SourceTitle "playchess.com"]
[Source "ChessBase"]
[SourceQuality "1"]
[TimeControl "40/5400+30:1800+30"]

1. e4 {[%emt 0:00:07]} c5 {[%emt 0:00:22]} 2. Nf3 {[%emt 0:00:19]} d6 {[%emt 0:00:30]} 3. Bb5+ {[%emt 0:00:08]} Nd7 {[%emt 0:00:26]} 4. d4 {[%emt 0:00:10]} cxd4 {[%emt 0:00:49]} 5. Qxd4 {[%emt 0:00:10]} a6 {[%emt 0:01:42]} 6. Bxd7+ {[%emt 0:00:21]} Bxd7 {[%emt 0:00:24]} 7. O-O {[%emt 0:00:27]} e5 {[%emt 0:05:55]} 8. Qd3 {[%emt 0:00:14]} h6 {[%emt 0:00:56]} 9. a4 {[%emt 0:01:37]} Nf6 {[%emt 0:11:49]} 10. c4 {[%emt 0:03:15]} b5 {[%emt 0:09:42]} 11. b3 {[%emt 0:04:44]} bxc4 {[%emt 0:02:35]} 12. bxc4 {[%emt 0:01:06]} Rc8 {[%emt 0:02:23]} 13. Nc3 {[%emt 0:01:56]} Qc7 {[%emt 0:03:29]} 14. Nd2 {[%emt 0:00:07]} Be7 {[%emt 0:01:07]} 15. Ba3 {[%emt 0:03:47]} O-O {[%emt 0:00:47]} 16. c5 {[%emt 0:03:00]} dxc5 {[%emt 0:01:27]} 17. Qxa6 {[%emt 0:00:23]} Ra8 {[%emt 0:04:43]} 18. Qc4 {[%emt 0:01:12]} Rfd8 {[%emt 0:00:50]} 19. Rfd1 {[%emt 0:15:51]} Bxa4 {[%emt 0:02:19]} 20. Nxa4 {[%emt 0:04:59]} Rd4 {[%emt 0:00:11]} 21. Qc2 {[%emt 0:01:02]} Raxa4 {[%emt 0:11:29]} 22. Bb2 {[%emt 0:00:48]} Rxa1 {[%emt 0:00:08]} 23. Rxa1 {[%emt 0:00:03]} Rd8 {[%emt 0:00:49]} 24. Nc4 {[%emt 0:01:06]} Nd7 {[%emt 0:00:15]} 25. Bc3 {[%emt 0:02:06]} Re8 {[%emt 0:06:19]} 26. Qa4 {[%emt 0:02:53]} Rc8 {[%emt 0:07:19]} 27. Rd1 {[%emt 0:02:11]} Nb6 {[%emt 0:00:27]} 28. Nxb6 {[%emt 0:01:36]} Qxb6 {[%emt 0:00:06]} 29. Bxe5 {[%emt 0:01:29]} c4 {[%emt 0:04:57]} 30. g3 {[%emt 0:04:03]} Qe6 {[%emt 0:06:03]} 31. Qa1 {[%emt 0:11:58]} f6 {[%emt 0:00:37]} 32. Bc3 {[%emt 0:00:38]} Qxe4 {[%emt 0:00:22]} 33. Qa7 {[%emt 0:01:57]} Qc2 {[%emt 0:10:42]} 34. Rd7 {[%emt 0:03:44]} Bc5 {[%emt 0:00:54]} 35. Rxg7+ {[%emt 0:05:19]} Kh8 {[%emt 0:00:03]} 36. Rh7+ {[%emt 0:02:49]} Qxh7 {[%emt 0:00:05]} 37. Bxf6+ {[%emt 0:00:41]} Kg8 {[%emt 0:00:06]} 38. Qa6 {[%emt 0:00:19]} Qb1+ {[%emt 0:01:37]} 39. Kg2 {[%emt 0:00:21]} Qe4+ {[%emt 0:00:03]} 40. Kh3 {[%emt 0:00:54]} Re8 {[%emt 0:00:23]} 41. Qb5 {[%emt 0:31:28]} Qf5+ {[%emt 0:30:27]} 42. Kg2 {[%emt 0:00:13]} Qxf2+ {[%emt 0:00:06]} 43. Kh3 {[%emt 0:00:08]} Qf5+ {[%emt 0:00:05]} 0-1

[Event "Prague Open 2025"]
[Site "Prague"]
[Date "2025.01.12"]
[Round "4.15"]
[White "Slacky, Stanislav"]
[Black "Colijn, Stefan"]
[Result "1/2-1/2"]
[Annotator "RC"]
[ECO "E06"]
[WhiteElo "2031"]
[BlackElo "2315"]
[PlyCount "74"]
[EventDate "2025.01.07"]
[EventType "swiss"]
[EventCountry "CZE"]
[SourceTitle "playchess.com"]
[Source "ChessBase"]
[SourceQuality "1"]
[TimeControl "40/5400+30:1800+30"]

1. d4 {[%emt 0:00:03]} d5 {[%emt 0:03:46]} 2. c4 {[%emt 0:00:36]} e6 {[%emt 0:00:05]} 3. Nf3 {[%emt 0:00:12]} Nf6 {[%emt 0:00:10]} 4. g3 {[%emt 0:00:12]} Be7 {[%emt 0:02:15]} 5. Bg2 {[%emt 0:00:08]} O-O {[%emt 0:00:07]} 6. O-O {[%emt 0:00:04]} dxc4 {[%emt 0:00:18]} 7. Na3 {[%emt 0:01:29]} Bxa3 {[%emt 0:00:30]} 8. bxa3 {[%emt 0:00:10]} b5 {[%emt 0:03:39]} 9. a4 {[%emt 0:01:08]} a6 {[%emt 0:00:22]} 10. Ba3 {[%emt 0:00:17]} Re8 {[%emt 0:00:23]} 11. Ne5 {[%emt 0:00:51]} Nd5 {[%emt 0:01:19]} 12. e4 {[%emt 0:01:59]} Nf6 {[%emt 0:00:44]} 13. Nxf7 {[%emt 0:00:14]} Kxf7 {[%emt 0:02:48]} 14. e5 {[%emt 0:00:13]} Nd5 {[%emt 0:02:35]} 15. Qh5+ {[%emt 0:00:09]} Kg8 {[%emt 0:00:05]} 16. Be4 {[%emt 0:00:15]} g6 {[%emt 0:01:07]} 17. Bxg6 {[%emt 0:00:15]} Re7 {[%emt 0:02:10]} 18. Bxe7 {[%emt 0:03:50]} Qxe7 {[%emt 0:01:44]} 19. Bxh7+ {[%emt 0:22:31]} Qxh7 {[%emt 0:00:02]} 20. Qe8+ {[%emt 0:00:05]} Kg7 {[%emt 0:00:05]} 21. Qxc8 {[%emt 0:00:07]} Qg8 {[%emt 0:00:11]} 22. Qb7 {[%emt 0:00:30]} Nd7 {[%emt 0:13:40]} 23. axb5 {[%emt 0:03:36]} axb5 {[%emt 0:08:29]} 24. Qxb5 {[%emt 0:01:55]} N7b6 {[%emt 0:02:17]} 25. Rfc1 {[%emt 0:10:35]} Qh7 {[%emt 0:03:03]} 26. a4 {[%emt 0:16:28]} Rh8 {[%emt 0:00:37]} 27. h4 {[%emt 0:00:36]} Qe4 {[%emt 0:00:43]} 28. Qc6 {[%emt 0:18:41]} Rxh4 {[%emt 0:19:00]} 29. gxh4 {[%emt 0:00:04]} Qg4+ {[%emt 0:00:04]} 30. Kf1 {[%emt 0:05:54]} Qf3 {[%emt 0:00:51]} 31. Kg1 {[%emt 0:00:57]} Qg4+ {[%emt 0:05:17]} 32. Kf1 {[%emt 0:00:09]} Qxh4 {[%emt 0:04:49]} 33. Qxe6 {[%emt 0:08:34]} Qh1+ {[%emt 0:02:42]} 34. Ke2 {[%emt 0:00:07]} Qe4+ {[%emt 0:01:06]} 35. Kf1 {[%emt 0:00:17]} Qh1+ {[%emt 0:05:25]} 36. Ke2 {[%emt 0:00:34]} Qe4+ {[%emt 0:03:10]} 37. Kf1 {[%emt 0:00:10]} Qh1+ 1/2-1/2

[Event "Prague Open 2025"]
[Site "Prague"]
[Date "2025.01.12"]
[Round "4.16"]
[White "Llopis de Aysa, Manuel"]
[Black "Golis, Wiktor"]
[Result "0-1"]
[Annotator "RC"]
[ECO "D37"]
[WhiteElo "2031"]
[BlackElo "2314"]
[PlyCount "64"]
[EventDate "2025.01.07"]
[EventType "swiss"]
[EventCountry "CZE"]
[SourceTitle "playchess.com"]
[Source "ChessBase"]
[SourceQuality "1"]
[TimeControl "40/5400+30:1800+30"]

1. d4 {[%emt 0:00:03]} Nf6 {[%emt 0:00:05]} 2. Nf3 {[%emt 0:00:06]} d5 {[%emt 0:00:11]} 3. c4 {[%emt 0:00:12]} e6 {[%emt 0:00:04]} 4. Nc3 {[%emt 0:00:25]} Ne4 {[%emt 0:00:24]} 5. Bf4 {[%emt 0:19:10]} Nc6 {[%emt 0:00:22]} 6. e3 {[%emt 0:08:25]} g5 {[%emt 0:01:18]} 7. Nxe4 {[%emt 0:00:12]} gxf4 {[%emt 0:01:00]} 8. Nc3 {[%emt 0:00:45]} fxe3 {[%emt 0:00:07]} 9. fxe3 {[%emt 0:00:41]} Bh6 {[%emt 0:01:23]} 10. Bd3 {[%emt 0:14:23]} dxc4 {[%emt 0:21:26]} 11. Be4 {[%emt 0:08:22]} Bd7 {[%emt 0:17:31]} 12. Qe2 {[%emt 0:04:55]} Qe7 {[%emt 0:01:21]} 13. O-O {[%emt 0:04:57]} O-O-O {[%emt 0:02:33]} 14. b3 {[%emt 0:07:11]} Rhg8 {[%emt 0:08:39]} 15. bxc4 {[%emt 0:02:40]} f5 {[%emt 0:01:13]} 16. Bc2 {[%emt 0:09:50]} Rg4 {[%emt 0:06:19]} 17. Rf2 {[%emt 0:02:56]} Rdg8 {[%emt 0:03:51]} 18. Re1 {[%emt 0:00:16]} Qg7 {[%emt 0:00:38]} 19. Kh1 {[%emt 0:03:11]} e5 {[%emt 0:10:14]} 20. d5 {[%emt 0:01:52]} Nb4 {[%emt 0:01:13]} 21. a3 {[%emt 0:04:26]} e4 {[%emt 0:01:55]} 22. Nd4 {[%emt 0:03:43]} Bxe3 {[%emt 0:10:39]} 23. Qxe3 {[%emt 0:00:02]} Rxg2 {[%emt 0:00:06]} 24. Nce2 {[%emt 0:00:27]} c5 {[%emt 0:06:19]} 25. dxc6 {[%emt 0:01:03]} Nxc6 {[%emt 0:00:08]} 26. Nb5 {[%emt 0:01:30]} a6 {[%emt 0:02:01]} 27. Nd6+ {[%emt 0:01:09]} Kc7 {[%emt 0:00:37]} 28. Nxf5 {[%emt 0:00:36]} Bxf5 {[%emt 0:00:39]} 29. Qf4+ {[%emt 0:00:06]} Ne5 {[%emt 0:01:28]} 30. Qxf5 {[%emt 0:00:53]} Nf3 {[%emt 0:00:26]} 31. Qf4+ {[%emt 0:00:48]} Kc8 {[%emt 0:00:50]} 32. Ng3 {[%emt 0:00:34]} Rxf2 {[%emt 0:00:12]} 0-1

[Event "Prague Open 2025"]
[Site "Prague"]
[Date "2025.01.12"]
[Round "4.17"]
[White "Jaskolka, Tomasz"]
[Black "Skodras, Marios Konstantinos"]
[Result "0-1"]
[Annotator "RC"]
[ECO "A45"]
[WhiteElo "2210"]
[BlackElo "2013"]
[PlyCount "62"]
[EventDate "2025.01.07"]
[EventType "swiss"]
[EventCountry "CZE"]
[SourceTitle "playchess.com"]
[Source "ChessBase"]
[SourceQuality "1"]
[TimeControl "40/5400+30:1800+30"]

1. d4 {[%emt 0:00:02]} Nf6 {[%emt 0:00:10]} 2. Nc3 {[%emt 0:00:02]} d5 {[%emt 0:00:09]} 3. Bf4 {[%emt 0:00:03]} g6 {[%emt 0:00:22]} 4. e3 {[%emt 0:00:04]} Bg7 {[%emt 0:00:21]} 5. h4 {[%emt 0:00:04]} h5 {[%emt 0:00:07]} 6. Nf3 {[%emt 0:00:03]} O-O {[%emt 0:00:37]} 7. Qd2 {[%emt 0:00:02]} c5 {[%emt 0:00:35]} 8. Ne5 {[%emt 0:00:05]} Nc6 {[%emt 0:01:07]} 9. f3 {[%emt 0:01:14]} cxd4 {[%emt 0:01:07]} 10. exd4 {[%emt 0:00:04]} Bf5 {[%emt 0:00:42]} 11. Bb5 {[%emt 0:00:06]} Nb4 {[%emt 0:09:54]} 12. Ba4 {[%emt 0:00:10]} Qb6 {[%emt 0:06:55]} 13. a3 {[%emt 0:10:41]} Nc6 {[%emt 0:02:59]} 14. O-O-O {[%emt 0:00:44]} Na5 {[%emt 0:10:45]} 15. g4 {[%emt 0:05:27]} hxg4 {[%emt 0:04:19]} 16. fxg4 {[%emt 0:00:21]} Bxg4 {[%emt 0:08:15]} 17. h5 {[%emt 0:11:28]} Bxd1 {[%emt 0:14:39]} 18. h6 {[%emt 0:01:28]} Bh5 {[%emt 0:01:25]} 19. hxg7 {[%emt 0:00:51]} Rfd8 {[%emt 0:03:28]} 20. Bb5 {[%emt 0:08:23]} Rac8 {[%emt 0:08:55]} 21. Bg5 {[%emt 0:04:53]} Ne4 {[%emt 0:06:15]} 22. Qf4 {[%emt 0:03:45]} f6 {[%emt 0:06:03]} 23. Nxe4 {[%emt 0:09:18]} dxe4 {[%emt 0:03:38]} 24. Bxf6 {[%emt 0:05:25]} Qxf6 {[%emt 0:02:44]} 25. Qe3 {[%emt 0:03:00]} Rxd4 {[%emt 0:02:23]} 26. Ng4 {[%emt 0:02:58]} Bxg4 {[%emt 0:01:33]} 27. Rh8+ {[%emt 0:00:34]} Kf7 {[%emt 0:01:14]} 28. c3 {[%emt 0:02:04]} Rxh8 {[%emt 0:01:24]} 29. gxh8=Q {[%emt 0:00:56]} Qxh8 {[%emt 0:00:30]} 30. Qf4+ {[%emt 0:01:04]} Qf6 {[%emt 0:00:21]} 31. Qxg4 {[%emt 0:00:19]} Rd5 {[%emt 0:01:03]} 0-1

[Event "Prague Open 2025"]
[Site "Prague"]
[Date "2025.01.12"]
[Round "4.18"]
[White "Fizer, Marek"]
[Black "Korniichuk, Oleksandra"]
[Result "1-0"]
[Annotator "ChessBase"]
[ECO "B31"]
[WhiteElo "2155"]
[BlackElo "2006"]
[PlyCount "119"]
[EventDate "2025.01.07"]
[EventType "swiss"]
[EventCountry "CZE"]
[SourceTitle "playchess.com"]
[Source "ChessBase"]
[SourceQuality "1"]
[TimeControl "40/5400+30:1800+30"]

1. e4 {[%emt 0:00:05]} c5 {[%emt 0:00:12]} 2. Nf3 {[%emt 0:00:09]} Nc6 {[%emt 0:00:13]} 3. Bb5 {[%emt 0:00:08]} g6 {[%emt 0:00:17]} 4. O-O {[%emt 0:00:18]} Bg7 {[%emt 0:00:05]} 5. Re1 {[%emt 0:00:16]} e5 {[%emt 0:00:20]} 6. Bxc6 {[%emt 0:00:13]} dxc6 {[%emt 0:00:11]} 7. d3 {[%emt 0:00:13]} Qc7 {[%emt 0:00:48]} 8. Be3 {[%emt 0:00:25]} b6 {[%emt 0:00:10]} 9. a4 {[%emt 0:00:17]} a5 {[%emt 0:00:15]} 10. Na3 {[%emt 0:00:34]} Ne7 {[%emt 0:01:09]} 11. h3 {[%emt 0:01:50]} O-O {[%emt 0:00:38]} 12. c3 {[%emt 0:01:24]} Rd8 {[%emt 0:08:40]} 13. Qc2 {[%emt 0:11:10]} Ba6 {[%emt 0:15:29]} 14. Rad1 {[%emt 0:02:04]} Rd7 {[%emt 0:08:58]} 15. Rd2 {[%emt 0:01:49]} Rad8 {[%emt 0:01:09]} 16. Red1 {[%emt 0:00:48]} h6 {[%emt 0:04:52]} 17. d4 {[%emt 0:07:32]} cxd4 {[%emt 0:01:37]} 18. cxd4 {[%emt 0:00:13]} exd4 {[%emt 0:00:45]} 19. Nxd4 {[%emt 0:08:26]} c5 {[%emt 0:09:51]} 20. Ndb5 {[%emt 0:13:03]} Qc6 {[%emt 0:01:16]} 21. b3 {[%emt 0:02:48]} Bxb5 {[%emt 0:04:52]} 22. Nxb5 {[%emt 0:22:29]} Qe6 {[%emt 0:03:21]} 23. Rxd7 {[%emt 0:03:26]} Rxd7 {[%emt 0:00:07]} 24. Rxd7 {[%emt 0:00:07]} Qxd7 {[%emt 0:00:03]} 25. Qd2 {[%emt 0:04:26]} Qe6 {[%emt 0:09:59]} 26. Qd8+ {[%emt 0:07:40]} Kh7 {[%emt 0:00:10]} 27. Nd6 {[%emt 0:00:13]} Be5 {[%emt 0:06:11]} 28. Nc4 {[%emt 0:00:28]} Bg7 {[%emt 0:02:52]} 29. Qxb6 {[%emt 0:05:33]} Qxe4 {[%emt 0:01:29]} 30. Qxa5 {[%emt 0:04:10]} Qb1+ {[%emt 0:01:40]} 31. Kh2 {[%emt 0:00:02]} Qxb3 {[%emt 0:00:25]} 32. Qb5 {[%emt 0:00:16]} Qa2 {[%emt 0:01:24]} 33. a5 {[%emt 0:01:51]} Nf5 {[%emt 0:02:32]} 34. Bxc5 {[%emt 0:01:32]} Nd4 {[%emt 0:00:41]} 35. Bxd4 {[%emt 0:01:24]} Bxd4 {[%emt 0:00:11]} 36. f3 {[%emt 0:00:37]} Qa1 {[%emt 0:02:48]} 37. Qe8 {[%emt 0:00:23]} Qg1+ {[%emt 0:10:34]} 38. Kg3 {[%emt 0:00:01]} Bf2+ {[%emt 0:00:33]} 39. Kf4 {[%emt 0:00:03]} Qc1+ {[%emt 0:00:44]} 40. Ne3 {[%emt 0:00:02]} g5+ {[%emt 0:00:49]} 41. Kg4 {[%emt 0:03:03]} Bxe3 {[%emt 0:09:01]} 42. Qxf7+ {[%emt 0:00:07]} Kh8 {[%emt 0:00:09]} 43. Kh5 {[%emt 0:04:39]} g4 {[%emt 0:05:38]} 44. Qf8+ {[%emt 0:04:26]} Kh7 {[%emt 0:00:10]} 45. Qf5+ {[%emt 0:03:13]} Kh8 {[%emt 0:00:13]} 46. hxg4 {[%emt 0:01:50]} Kg7 {[%emt 0:02:13]} 47. Qg6+ {[%emt 0:05:35]} Kf8 {[%emt 0:02:12]} 48. Qf6+ {[%emt 0:00:10]} Ke8 {[%emt 0:00:37]} 49. a6 {[%emt 0:07:01]} Qc5+ {[%emt 0:02:02]} 50. Kg6 {[%emt 0:03:49]} Qc2+ {[%emt 0:04:14]} 51. Qf5 {[%emt 0:00:48]} Qc6+ {[%emt 0:01:50]} 52. Kh5 {[%emt 0:00:10]} Qc1 {[%emt 0:05:08]} 53. g3 {[%emt 0:02:21]} Ke7 {[%emt 0:01:54]} 54. Qe4+ {[%emt 0:01:13]} Kf7 {[%emt 0:00:18]} 55. f4 {[%emt 0:00:24]} Qd2 {[%emt 0:00:56]} 56. Kxh6 {[%emt 0:00:38]} Qh2+ {[%emt 0:01:20]} 57. Kg5 {[%emt 0:00:02]} Qxg3 {[%emt 0:00:20]} 58. a7 {[%emt 0:00:23]} Bf2 {[%emt 0:01:19]} 59. Qh7+ {[%emt 0:00:13]} Ke6 {[%emt 0:00:12]} 60. a8=Q {[%emt 0:00:16]} 1-0